fUST/lending_fUST_20240822
["ID","MTS","AMOUNT","RATE_DAILY","PERIOD"]
[335478858,1724260240293,-181.741714,0.00032285,2]
[335478859,1724260240303,-180.055543,0.00032285,2]
[335478860,1724260240313,-181.741714,0.00032285,2]
[335478861,1724260240323,-36062.227693,0.0003248,4]
[335478862,1724260240332,-409.0504316,0.00032493,2]
[335478863,1724260240341,-409.0504316,0.00032493,2]
[335478864,1724260240350,-153.0,0.00032493,2]
[335478865,1724260240360,-153.0,0.00032493,2]
[335478866,1724260240370,-409.0504316,0.00032493,2]
[335478868,1724260240379,-153.0,0.00032493,2]
[335478870,1724260240388,-207.6241733,0.00032493,2]
[335478872,1724260240398,-207.6241733,0.00032493,2]
[335478874,1724260240407,-207.6241733,0.00032493,2]
[335478876,1724260240417,-153.0,0.00032493,2]
[335478878,1724260240426,-153.0,0.00032493,2]
[335478879,1724260240436,-207.6241733,0.00032493,2]
[335478880,1724260240446,-153.0,0.00032493,2]
[335478881,1724260240455,-153.0,0.00032493,2]
[335478882,1724260240465,-6002.184,0.000325,120]
[335478883,1724260240474,-6002.185,0.000325,120]
[335478884,1724260240483,-6002.184,0.000325,120]
[335478885,1724260240493,-6002.185,0.000325,120]
[335478886,1724260240502,-6002.184,0.000325,120]
[335478887,1724260240511,-500.0,0.00032727,7]
[335478888,1724260240521,-6617.71510224,0.00032784,60]
[335478889,1724260240530,-5712.62,0.00032876,21]
[335478891,1724260240540,-150.5,0.00032915,120]
[335478893,1724260240550,-151.0,0.00032925,4]
[335478895,1724260240560,-151.0,0.00032925,4]
[335478897,1724260240571,-5712.62,0.00032931,21]
[335478898,1724260240582,-600.0,0.00032968,15]
[335478900,1724260240594,-600.0,0.00032968,15]
[335478902,1724260240604,-5712.62,0.00032986,21]
[335478904,1724260240613,-153.0,0.00032986,2]
[335478906,1724260240622,-207.6241733,0.00032986,2]
[335478907,1724260240632,-433.81,0.00033,14]
[335478909,1724260240641,-300.0,0.00033,7]
[335478911,1724260240650,-1000.0,0.00033,33]
[335478914,1724260240659,-500.0,0.00033034,7]
[335478916,1724260240669,-5712.62,0.00033041,21]
[335478918,1724260240678,-5712.62,0.00033095,21]
[335478920,1724260240688,-5712.62,0.0003315,21]
[335478922,1724260240697,-155.82579699,0.00033184,3]
[335478924,1724260240707,-5712.62,0.00033205,21]
[335478925,1724260240717,-600.0,0.00033239,16]
[335478927,1724260240726,-600.0,0.00033239,16]
[335478929,1724260240735,-600.0,0.00033239,16]
[335478931,1724260240745,-5712.62,0.0003326,21]
[335478932,1724260240754,-307.1663741,0.0003326,2]
[335478934,1724260240764,-5712.62,0.00033315,21]
[335478935,1724260240773,-600.0,0.0003332,16]
[335478936,1724260240783,-600.0,0.0003332,16]
[335478937,1724260240792,-600.0,0.0003332,16]
[335478938,1724260240801,-5712.62,0.00033369,21]
[335478939,1724260240811,-5712.62,0.00033424,21]
[335478940,1724260240821,-5712.62,0.00033479,21]
[335478941,1724260240830,-280.2639385,0.00033479,2]
[335478942,1724260240839,-4039.24699233,0.00033534,21]
[335478943,1724260240857,-274.14,0.00033534,21]
[335478946,1724260240989,-1399.23300767,0.00033534,21]
[335478947,1724260240999,-155.0,0.0003354,30]
[335478949,1724260241008,-150.0,0.00033588,2]
[335478951,1724260241018,-521.0,0.00033588,2]
[335478953,1724260241029,-4974.63648613,0.00033589,21]
[335478955,1724260241041,-737.98351387,0.00033589,21]
[335478956,1724260241051,-600.0,0.00033599,2]
[335478957,1724260241060,-191.130082,0.00033626,2]
[335478958,1724260241069,-5658.88640413,0.00033643,21]
[335478988,1724260243759,-153.0,0.00033479,2]
[335478989,1724260243769,-53.73359587,0.00033643,21]
[335478990,1724260243778,-900.0,0.00033659,7]
[335478991,1724260243788,-5712.62,0.00033698,21]
[335478992,1724260243798,-1981.52,0.000337,14]
[335478993,1724260243809,-225.09,0.000337,31]
[335478994,1724260243818,-225.09,0.000337,31]
[335478995,1724260243828,-225.09,0.000337,31]
[335478996,1724260243838,-225.09,0.000337,31]
[335478997,1724260243848,-225.09,0.000337,31]
[335478998,1724260243858,-225.09,0.000337,31]
[335478999,1724260243869,-225.09,0.000337,31]
[335479000,1724260243880,-225.09,0.000337,31]
[335479001,1724260243890,-225.09,0.000337,31]
[335479002,1724260243901,-225.09,0.000337,31]
[335479003,1724260243911,-225.09,0.000337,31]
[335479004,1724260243921,-225.09,0.000337,31]
[335479005,1724260243931,-5712.62,0.00033753,21]
[335479006,1724260243941,-600.0,0.00033776,18]
[335479007,1724260243951,-600.0,0.00033776,18]
[335479008,1724260243962,-603.0,0.000338,2]
[335479009,1724260243972,-5712.62,0.00033808,21]
[335479010,1724260243983,-700.0,0.0003381,7]
[335479011,1724260243993,-306.0,0.00033858,2]
[335479012,1724260244004,-153.0,0.00033858,2]
[335479013,1724260244013,-5712.62,0.00033863,21]
[335479014,1724260244023,-5712.62,0.00033917,21]
[335479015,1724260244033,-151.0,0.00033928,4]
[335479016,1724260244042,-151.0,0.00033928,4]
[335479017,1724260244052,-600.0,0.00033949,2]
[335479018,1724260244062,-5712.62,0.00033972,21]
[335479019,1724260244072,-1665.67,0.00033972,21]
[335479020,1724260244082,-1665.67,0.00033972,21]
[335479021,1724260244091,-1665.67,0.00033972,21]
[335479022,1724260244101,-1665.67,0.00033972,21]
[335479023,1724260244111,-1665.67,0.00033972,21]
[335479024,1724260244121,-1665.67,0.00033972,21]
[335479025,1724260244131,-1665.67,0.00033972,21]
[335479026,1724260244140,-1665.67,0.00033972,21]
[335479027,1724260244150,-1665.67,0.00033972,21]
[335479028,1724260244160,-1665.67,0.00033972,21]
[335479029,1724260244169,-1665.67,0.00033972,21]
[335479030,1724260244179,-1665.67,0.00033972,21]
[335479031,1724260244189,-1665.67,0.00033972,21]
[335479032,1724260244198,-1166.79890681,0.00033972,21]
[335479033,1724260244318,-498.87109319,0.00033972,21]
[335479034,1724260244330,-1665.67,0.00033972,21]
[335479035,1724260244340,-1665.67,0.00033972,21]
[335479036,1724260244350,-3000.0,0.00034,18]
[335479037,1724260244360,-229.69,0.00034,30]
[335479038,1724260244369,-300.0,0.00034,9]
[335479039,1724260244378,-1000.0,0.00034,34]
[335479040,1724260244388,-225.09,0.00034,31]
[335479041,1724260244398,-225.09,0.00034,31]
[335479042,1724260244407,-225.09,0.00034,31]
[335479043,1724260244417,-225.09,0.00034,31]
[335479044,1724260244427,-225.09,0.00034,31]
[335479045,1724260244436,-225.09,0.00034,31]
[335479046,1724260244445,-225.09,0.00034,31]
[335479047,1724260244455,-225.09,0.00034,31]
[335479048,1724260244464,-225.09,0.00034,31]
[335479049,1724260244473,-225.09,0.00034,31]
[335479050,1724260244483,-225.09,0.00034,31]
[335479051,1724260244493,-225.09,0.00034,31]
[335479052,1724260244502,-225.09,0.00034,31]
[335479053,1724260244512,-225.09,0.00034,31]
[335479054,1724260244522,-225.09,0.00034,31]
[335479055,1724260244531,-225.09,0.00034,31]
[335479056,1724260244543,-225.09,0.00034,31]
[335479057,1724260244552,-225.09,0.00034,31]
[335479058,1724260244562,-225.09,0.00034,31]
[335479059,1724260244572,-225.09,0.00034,31]
[335479060,1724260244585,-225.09,0.00034,31]
[335479061,1724260244595,-225.09,0.00034,31]
[335479062,1724260244605,-225.09,0.00034,31]
[335479063,1724260244614,-225.09,0.00034,31]
[335479064,1724260244624,-3000.0,0.0003401,18]
[335479065,1724260244634,-3000.0,0.0003402,18]
[335479066,1724260244643,-151.0,0.0003402,7]
[335479067,1724260244653,-5712.62,0.00034027,21]
[335479068,1724260244664,-638.6811407,0.00034027,2]
[335479069,1724260244674,-207.6241733,0.00034027,2]
[335479070,1724260244684,-207.6241733,0.00034027,2]
[335479072,1724260244694,-207.6241733,0.00034027,2]
[335479074,1724260244703,-414.3555497,0.00034027,2]
[335479076,1724260244713,-415.2483466,0.00034027,2]
[335479077,1724260244724,-207.6241733,0.00034027,2]
[335479079,1724260244734,-3000.0,0.0003403,18]
[335479080,1724260244743,-3000.0,0.0003404,18]
[335479081,1724260244753,-1665.67,0.00034049,21]
[335479082,1724260244762,-3000.0,0.0003405,18]
[335479083,1724260244772,-3000.0,0.0003406,18]
[335479084,1724260244782,-3000.0,0.0003407,18]
[335479085,1724260244791,-3000.0,0.0003408,18]
[335479086,1724260244801,-5712.62,0.00034082,21]
[335479087,1724260244815,-207.6241733,0.00034082,2]
[335479088,1724260244825,-3000.0,0.0003409,18]
[335479089,1724260244834,-3000.0,0.000341,18]
[335479090,1724260244843,-600.0,0.00034104,19]
[335479091,1724260244853,-3000.0,0.0003411,18]
[335479092,1724260244862,-3000.0,0.0003412,18]
[335479093,1724260244871,-3000.0,0.0003413,18]
[335479094,1724260244880,-5712.79164472,0.00034136,21]
[335479095,1724260244890,-3000.0,0.0003414,18]
[335479096,1724260244899,-3000.0,0.0003415,18]
[335479097,1724260244908,-1665.67,0.00034151,21]
[335479098,1724260244918,-600.0,0.00034152,19]
[335479099,1724260244928,-600.0,0.00034152,19]
[335479100,1724260244937,-600.0,0.00034152,19]
[335479101,1724260244947,-600.0,0.00034152,19]
[335479102,1724260244956,-600.0,0.00034152,19]
[335479103,1724260244965,-600.0,0.00034152,19]
[335479104,1724260244975,-600.0,0.00034152,19]
[335479105,1724260244984,-3000.0,0.0003416,18]
[335479106,1724260244993,-3000.0,0.0003417,18]
[335479107,1724260245002,-3000.0,0.0003418,18]
[335479108,1724260245012,-3000.0,0.0003419,18]
[335479109,1724260245021,-3000.0,0.000342,19]
[335479110,1724260245030,-600.0,0.00034202,19]
[335479111,1724260245039,-3000.0,0.0003421,19]
[335479112,1724260245048,-3000.0,0.0003422,19]
[335479113,1724260245059,-655.40172504,0.00034223,7]
[335479114,1724260245068,-3000.0,0.0003423,19]
[335479115,1724260245077,-600.0,0.00034232,19]
[335479116,1724260245087,-600.0,0.00034232,19]
[335479117,1724260245096,-600.0,0.00034232,19]
[335479118,1724260245105,-600.0,0.00034232,19]
[335479119,1724260245114,-600.0,0.00034232,19]
[335479120,1724260245123,-600.0,0.00034232,19]
[335479121,1724260245132,-600.0,0.00034232,19]
[335479122,1724260245141,-1167.97496626,0.00034232,19]
[335479123,1724260245150,-600.0,0.00034232,19]
[335479124,1724260245159,-600.0,0.00034232,19]
[335479125,1724260245168,-600.0,0.00034232,19]
[335479126,1724260245177,-600.0,0.00034232,19]
[335479127,1724260245187,-600.0,0.00034232,19]
[335479128,1724260245196,-600.0,0.00034232,19]
[335479129,1724260245205,-600.0,0.00034232,19]
[335479130,1724260245214,-3000.0,0.0003424,19]
[335479131,1724260245223,-500.0,0.00034246,21]
[335479132,1724260245232,-500.0,0.00034246,21]
[335479133,1724260245241,-1665.67,0.00034249,21]
[335479134,1724260245250,-3000.0,0.0003425,19]
[335479135,1724260245259,-3000.0,0.0003426,19]
[335479136,1724260245268,-3000.0,0.0003427,19]
[335479137,1724260245277,-153.0,0.00034274,2]
[335479138,1724260245286,-153.0,0.00034274,2]
[335479139,1724260245295,-153.0,0.00034274,2]
[335479140,1724260245304,-153.0,0.00034274,2]
[335479141,1724260245314,-153.0,0.00034274,2]
[335479142,1724260245324,-153.0,0.00034274,2]
[335479143,1724260245333,-153.0,0.00034274,2]
[335479144,1724260245343,-3000.0,0.0003428,19]
[335479145,1724260245352,-3000.0,0.0003429,19]
[335479146,1724260245361,-600.0,0.00034299,2]
[335479147,1724260245371,-600.0,0.000343,19]
[335479148,1724260245380,-3000.0,0.000343,19]
[335479149,1724260245389,-225.09,0.000343,31]
[335479150,1724260245398,-225.09,0.000343,31]
[335479151,1724260245407,-225.09,0.000343,31]
[335479152,1724260245416,-225.09,0.000343,31]
[335479153,1724260245425,-225.09,0.000343,31]
[335479154,1724260245435,-225.09,0.000343,31]
[335479155,1724260245444,-225.09,0.000343,31]
[335479156,1724260245453,-225.09,0.000343,31]
[335479157,1724260245463,-225.09,0.000343,31]
[335479158,1724260245472,-225.09,0.000343,31]
[335479159,1724260245481,-225.09,0.000343,31]
[335479160,1724260245490,-225.09,0.000343,31]
[335479161,1724260245500,-225.09,0.000343,31]
[335479162,1724260245509,-225.09,0.000343,31]
[335479163,1724260245518,-225.09,0.000343,31]
[335479164,1724260245528,-225.09,0.000343,31]
[335479165,1724260245538,-225.09,0.000343,31]
[335479166,1724260245547,-225.09,0.000343,31]
[335479167,1724260245557,-225.09,0.000343,31]
[335479168,1724260245568,-225.09,0.000343,31]
[335479169,1724260245580,-225.09,0.000343,31]
[335479170,1724260245590,-225.09,0.000343,31]
[335479171,1724260245600,-225.09,0.000343,31]
[335479172,1724260245609,-225.09,0.000343,31]
[335479173,1724260245618,-3000.0,0.0003431,19]
[335479174,1724260245627,-3000.0,0.0003432,19]
[335479175,1724260245636,-3000.0,0.0003433,19]
[335479176,1724260245645,-3000.0,0.0003434,19]
[335479177,1724260245655,-3000.0,0.0003435,19]
[335479178,1724260245666,-3000.0,0.0003436,19]
[335479179,1724260245675,-1528.06647667,0.0003437,19]
[335479196,1724260246763,-411.11179919,0.0001816,2]
[335479204,1724260994161,291.81,0.00019969,120]
[335479205,1724260994614,150.5,0.00019969,120]
[335479206,1724260995087,152.04,0.00019959,120]
[335479207,1724261032148,433.60877131,9.906e-05,2]
[335479208,1724261048318,273.37336231,9.906e-05,2]
[335479210,1724261071866,16321.89408896,9.906e-05,2]
[335479211,1724261078158,546.74672462,9.906e-05,2]
[335479212,1724261093433,273.37336231,9.906e-05,2]
[335479213,1724261105447,1309.27391092,9.906e-05,2]
[335479214,1724261108936,273.37336231,9.906e-05,2]
[335479215,1724261113329,150.5,0.0001814,120]
[335479216,1724261124490,273.37336231,9.906e-05,2]
[335479217,1724261140823,273.37336231,9.906e-05,2]
[335479218,1724261157253,273.37336231,9.906e-05,2]
[335479219,1724261168824,16321.89408896,9.906e-05,2]
[335479220,1724261173468,273.37336231,9.906e-05,2]
[335479221,1724261183781,16321.89408896,9.906e-05,2]
[335479222,1724261188824,273.37336231,9.906e-05,2]
[335479223,1724261199146,1309.27391092,9.906e-05,2]
[335479224,1724261204438,-300.0,0.00011841,2]
[335479225,1724261204463,-300.0,0.00011841,2]
[335479226,1724261204487,-55479.0935374,0.00011842,2]
[335479227,1724261204510,-31665.700532,0.0001212,2]
[335479228,1724261204533,-24900.0,0.0001242,2]
[335479229,1724261204556,-7013.41255393,0.00012551,2]
[335479230,1724261204583,-43530.7850767,0.00012619,2]
[335479231,1724261204606,-9661.21518978,0.00012629,2]
[335479232,1724261204633,-232.880806,0.00012667,2]
[335479233,1724261204660,-232.880806,0.00012701,2]
[335479234,1724261204686,-232.880806,0.00012736,2]
[335479235,1724261204713,-232.880806,0.00012771,2]
[335479236,1724261204738,-2930.93515321,0.00012782,2]
[335479237,1724261204766,-232.880806,0.00012806,2]
[335479238,1724261204791,-232.880806,0.0001284,2]
[335479239,1724261204815,-232.880806,0.00012875,2]
[335479240,1724261204839,-9007.19600684,0.00012889,2]
[335479241,1724261204861,-1613.45959463,0.00012898,2]
[335479242,1724261204884,-2166.25640825,0.00012898,2]
[335479243,1724261204913,-888.82672483,0.000129,2]
[335479244,1724261204938,-232.880806,0.0001291,2]
[335479245,1724261204963,-232.880806,0.00012944,2]
[335479246,1724261204989,-1766.47659697,0.00012971,2]
[335479247,1724261205013,-232.880806,0.00012979,2]
[335479248,1724261205038,-3092.64278727,0.00012985,2]
[335479249,1724261205061,-851.03180948,0.00012985,2]
[335479250,1724261205085,-521.29251267,0.00012989,2]
[335479251,1724261205109,-8806.76654804,0.00012989,2]
[335479252,1724261205134,-2143.22745307,0.00012989,2]
[335479253,1724261205158,-780.20005204,0.00012989,2]
[335479254,1724261205183,-154.80649189,0.00012991,2]
[335479255,1724261205217,-210.28158249,0.00012999,2]
[335479256,1724261205244,-534.85669911,0.00012999,2]
[335479257,1724261205271,-196.84867548,0.00012999,2]
[335479258,1724261205295,-154.87171595,0.00012999,2]
[335479259,1724261205319,-303.88315392,0.00012999,2]
[335479260,1724261205344,-188.56371582,0.00012999,2]
[335479261,1724261205372,-420.0,0.00013001,2]
[335479262,1724261205399,-232.880806,0.00013014,2]
[335479263,1724261205422,-320.27103328,0.00013025,2]
[335479264,1724261205449,-190.11130419,0.00013025,2]
[335479265,1724261205473,-304.24371454,0.00013025,2]
[335479266,1724261205496,-701.56364125,0.00013025,2]
[335479267,1724261205520,-157.1271647,0.00013025,2]
[335479268,1724261205544,-190.11130419,0.00013025,2]
[335479269,1724261205567,-422.40164092,0.00013025,2]
[335479270,1724261205590,-279.22166571,0.00013025,2]
[335479271,1724261205614,-174.87204268,0.00013025,2]
[335479272,1724261205636,-154.76012181,0.00013025,2]
[335479273,1724261205659,-270.29097303,0.00013025,7]
[335479274,1724261205683,-420.0,0.00013025,2]
[335479275,1724261205709,-232.880806,0.00013049,2]
[335479276,1724261205732,-520.70014907,0.00013051,2]
[335479277,1724261205755,-495.14476956,0.00013051,2]
[335479278,1724261205778,-688.676981,0.00013051,2]
[335479279,1724261205801,-154.76012181,0.00013051,2]
[335479280,1724261205824,-154.77557542,0.00013051,2]
[335479281,1724261205850,-232.880806,0.00013083,2]
[335479282,1724261205874,-232.880806,0.00013118,2]
[335479283,1724261205903,-232.880806,0.00013153,2]
[335479284,1724261205930,-232.880806,0.00013188,2]
[335479285,1724261205956,-232.880806,0.00013222,2]
[335479286,1724261205983,-232.880806,0.00013257,2]
[335479287,1724261206010,-232.880806,0.00013292,2]
[335479288,1724261206037,-232.880806,0.00013327,2]
[335479289,1724261206063,-43530.7850767,0.00013486,2]
[335479290,1724261206090,-239.34774772,0.00013596,2]
[335479291,1724261206115,-154.85280641,0.00013688,2]
[335479292,1724261206142,-223.52112672,0.00013688,2]
[335479293,1724261206166,-569.55611374,0.00013698,2]
[335479294,1724261206190,-160.77115221,0.00013698,2]
[335479295,1724261206217,-1013.565036,0.00013699,2]
[335479296,1724261206241,-191.60607295,0.00013792,2]
[335479297,1724261206266,-156.78863559,0.00013971,2]
[335479298,1724261206290,-2712.58332809,0.00013971,2]
[335479299,1724261206313,-1500.0,0.00013971,2]
[335479300,1724261206346,180.91774597,0.00013971,2]
[335479301,1724261206385,273.37336231,9.906e-05,2]
[335479302,1724261220762,273.37336231,0.00014,2]
[335479303,1724261236265,4659.22028923,0.00012007,2]
[335479304,1724261239728,811.29992625,0.00012007,2]
[335479305,1724261240094,850.70245322,0.00012007,2]
[335479306,1724261242620,9657.3357111,0.00012007,2]
[335479307,1724261244143,1309.27391092,0.00012007,2]
[335479310,1724261250982,273.37336231,0.00014,2]
[335479311,1724261251476,1500.0,0.00012007,2]
[335479312,1724261251914,210.19821375,0.00012007,2]
[335479313,1724261252104,174.87204268,0.00012007,2]
[335479314,1724261252650,780.20005204,0.00012007,2]
[335479315,1724261253454,190.00079694,0.00012007,2]
[335479316,1724261253547,154.76012181,0.00012007,2]
[335479317,1724261255016,309.31945472,0.00012007,2]
[335479318,1724261255304,157.06500226,0.00012007,2]
[335479319,1724261255430,422.23368222,0.00012007,2]
[335479320,1724261257099,196.77432636,0.00012007,2]
[335479321,1724261265162,2142.39471475,0.00012007,2]
[335479322,1724261266439,273.37336231,0.00014,2]
[335479323,1724261281647,273.37336231,0.00014,2]
[335479324,1724261287422,24900.0,0.00012572,2]
[335479325,1724261297024,273.37336231,0.00014,2]
[335479327,1724261313500,273.37336231,0.00014,2]
[335479328,1724261329295,273.37336231,0.00014,2]
[335479329,1724261345789,273.37336231,0.00014,2]
[335479331,1724261361524,273.37336231,0.00014,2]
[335479332,1724261371650,1309.27391092,0.00014,2]
[335479333,1724261376937,273.37336231,0.00014,2]
[335479347,1724261392177,273.37336231,0.00014,2]
[335479352,1724261408416,546.74672462,0.00014,2]
[335479353,1724261424750,273.37336231,0.00014,2]
[335479464,1724261438085,-779.7606595,0.00014245,2]
[335479465,1724261438095,-155.80478878,0.00014245,2]
[335479466,1724261438106,-174.76125691,0.00014245,2]
[335479467,1724261438116,-172.017073,0.00014247,2]
[335479468,1724261438126,-300.0,0.00015891,2]
[335479469,1724261438137,-2262.53134646,0.00016,2]
[335479470,1724261438147,-160.235409,0.00016035,2]
[335479471,1724261438157,-160.235409,0.00016062,2]
[335479472,1724261438167,-160.235409,0.00016089,2]
[335479473,1724261438181,-160.235409,0.00016116,2]
[335479474,1724261438192,-1309.27391092,0.00016969,2]
[335479475,1724261438203,-1361.73752843,0.0001708,2]
[335479476,1724261438215,-1278.92084112,0.0001708,2]
[335479477,1724261438227,-953.53947811,0.00017086,2]
[335479478,1724261438238,-1111.18149522,0.00017174,2]
[335479480,1724261438249,-277.68803325,0.00017299,2]
[335479481,1724261438260,-277.68803325,0.00017533,2]
[335479482,1724261438283,-1991.50485113,0.000176,2]
[335479483,1724261438295,-10343.5134042,0.00017898,2]
[335479484,1724261438306,-15958.96024021,0.00018447,2]
[335479485,1724261438317,-39177.7065691,0.00018885,2]
[335479486,1724261438326,-186.58276462,0.000191,2]
[335479487,1724261438337,-500.0,0.00019178,2]
[335479488,1724261438348,-500.0,0.00019178,2]
[335479490,1724261438360,-500.0,0.00019178,2]
[335479491,1724261438370,-500.0,0.00019178,2]
[335479492,1724261438381,-541.17327954,0.00019178,2]
[335479494,1724261438391,-160.387375,0.00019178,2]
[335479495,1724261438401,-251.0,0.00019178,2]
[335479496,1724261438411,-162.4276425,0.00019452,2]
[335479497,1724261438421,-200.0,0.00019973,2]
[335479498,1724261438436,-200.0,0.00019973,2]
[335479499,1724261438446,-200.0,0.00019973,2]
[335479500,1724261438456,-78355.4131382,0.0001998,2]
[335479501,1724261438466,-39177.7065691,0.00019989,2]
[335479502,1724261438476,-500.0,0.00019989,2]
[335479503,1724261438486,-500.0,0.00019989,2]
[335479504,1724261438496,-500.0,0.00019989,2]
[335479505,1724261438506,-174.86707194,0.00019989,2]
[335479506,1724261438516,-253.45590805,0.00019989,2]
[335479507,1724261438526,-500.0,0.00019989,2]
[335479508,1724261438536,-500.0,0.00019989,2]
[335479509,1724261438546,-500.0,0.00019989,2]
[335479510,1724261438556,-500.0,0.00019989,2]
[335479511,1724261438566,-500.0,0.00019989,2]
[335479512,1724261438576,-500.0,0.00019989,2]
[335479513,1724261438586,-500.0,0.00019989,2]
[335479514,1724261438595,-500.0,0.00019989,2]
[335479515,1724261438609,-500.0,0.00019989,2]
[335479516,1724261438619,-500.0,0.00019989,2]
[335479517,1724261438628,-500.0,0.00019989,2]
[335479518,1724261438638,-500.0,0.00019989,2]
[335479519,1724261438647,-500.0,0.00019989,2]
[335479520,1724261438657,-500.0,0.00019989,2]
[335479521,1724261438668,-500.0,0.00019989,2]
[335479522,1724261438680,-500.0,0.00019989,2]
[335479523,1724261438690,-342.03398179,0.00019989,2]
[335479524,1724261438700,-500.0,0.00019989,2]
[335479525,1724261438709,-500.0,0.00019989,2]
[335479526,1724261438719,-400.0,0.00019989,2]
[335479527,1724261438728,-117533.119707,0.0001999,2]
[335479528,1724261438738,-286536.10212643,0.0001999,2]
[335479529,1724261438748,-28900.5901179,0.00019999,30]
[335479530,1724261438757,-226.13158555,0.0002,2]
[335479531,1724261438767,-126513.3262371,0.0002,2]
[335479532,1724261438776,-10513.28749774,0.0002,2]
[335479533,1724261438786,-44945.35552353,0.0002,2]
[335479534,1724261438796,-10055.12489044,0.0002,2]
[335479535,1724261438805,-4291.56646056,0.0002,2]
[335479536,1724261438814,-1981.52,0.0002,2]
[335479537,1724261438823,-431.94,0.0002,2]
[335479538,1724261438834,-205.74,0.0002,2]
[335479539,1724261438843,-116963.81079083,0.00020377,2]
[335479540,1724261438859,-3142.89546402,0.00020377,2]
[335479541,1724261438868,-1013.565036,0.00020548,2]
[335479542,1724261438878,-5386.44821665,0.00020551,15]
[335479543,1724261438893,-4256.67382559,0.0002066,7]
[335479544,1724261438903,-172.017073,0.00020707,2]
[335479545,1724261438912,-5000.0,0.00021,2]
[335479546,1724261438922,-258.55026975,0.00021,2]
[335479547,1724261438932,-5711.76414089,0.00021,2]
[335479548,1724261438942,-233.00336597,0.00021,2]
[335479549,1724261438951,-10148.06234563,0.00021,2]
[335479550,1724261438961,-435.0,0.00021041,2]
[335479551,1724261438971,-504.39808835,0.000212,2]
[335479552,1724261438980,-308.70225098,0.00022,2]
[335479553,1724261438993,-287.17173053,0.00022012,2]
[335479554,1724261439008,-1260.81854444,0.00022012,2]
[335479555,1724261439018,-192.79525293,0.00022012,2]
[335479556,1724261439028,-882.99597685,0.0002217,2]
[335479557,1724261439039,-1314.02705259,0.000223,2]
[335479558,1724261439050,-777.72338422,0.00022864,2]
[335479559,1724261439059,-239.54490623,0.00023,2]
[335479560,1724261439069,-11402.02376786,0.00023,2]
[335479561,1724261439082,-500.0,0.00023151,2]
[335479562,1724261439092,-500.0,0.00023534,2]
[335479563,1724261439102,-500.0,0.00023633,2]
[335479564,1724261439111,-1981.52,0.000237,14]
[335479565,1724261439121,-153.540029,0.000238,3]
[335479566,1724261439130,-431.94,0.000238,14]
[335479567,1724261439140,-74126.46421553,0.00024,60]
[335479568,1724261439150,-205.74,0.00024,7]
[335479569,1724261439160,-500.0,0.00024098,2]
[335479570,1724261439170,-380.0,0.00024658,2]
[335479571,1724261439181,-631.83554832,0.00024658,2]
[335479572,1724261439192,-500.0,0.00024804,2]
[335479573,1724261439202,-500.0,0.0002486,2]
[335479574,1724261439212,-160.0,0.00024999,2]
[335479575,1724261439222,-160.0,0.00024999,2]
[335479576,1724261439231,-160.0,0.00024999,2]
[335479577,1724261439241,-196.0957584,0.00025,2]
[335479578,1724261439250,-143050.26619611,0.00025,30]
[335479579,1724261439266,-77672.36595702,0.00025,30]
[335479580,1724261439294,-86340.68335598,0.00025,30]
[335479604,1724261440393,-666.4488001,0.00025,15]